bitfinex/quotes_BTCUSD_20240728
["timestamp","ask_amount","ask_price","bid_price","bid_amount"]
[1722198003550,0.08844953,68240.0,68239.0,1.33547882]
[1722198003773,0.08844962,68240.0,68239.0,1.43547882]
[1722198003976,0.08844962,68240.0,68239.0,1.33547882]
[1722198004610,0.08844962,68240.0,68239.0,1.25307882]
[1722198005259,0.08844962,68240.0,68239.0,1.35307882]
[1722198007421,0.08844961,68240.0,68239.0,1.35307882]
[1722198008832,0.09000381,68240.0,68239.0,1.35307882]
[1722198009485,0.08844961,68240.0,68239.0,1.35307882]
[1722198010518,0.00046632,68240.0,68239.0,1.35307882]
[1722198010731,0.08844859,68240.0,68239.0,1.35307882]
[1722198011138,0.08844966,68240.0,68239.0,1.35307882]
[1722198012933,0.08846014,68240.0,68239.0,1.25307882]
[1722198013824,0.00046632,68240.0,68239.0,1.25307882]
[1722198014033,0.0884634,68240.0,68239.0,1.25307882]
[1722198015081,0.0884634,68240.0,68239.0,1.35307882]
[1722198017088,0.00046632,68240.0,68239.0,1.35307882]
[1722198017301,0.08846981,68240.0,68239.0,1.35307882]
[1722198020215,0.00046632,68240.0,68239.0,1.35307882]
[1722198020424,0.08846179,68240.0,68239.0,1.35307882]
[1722198020924,0.08846167,68240.0,68239.0,1.35307882]
[1722198023640,0.08846818,68240.0,68239.0,1.35307882]
[1722198025552,0.08846818,68240.0,68239.0,1.25307882]
[1722198025756,0.25136864,68240.0,68239.0,0.87518172]
[1722198025902,0.15081549,68240.0,68239.0,0.14877172]
[1722198026310,0.15081549,68240.0,68239.0,0.61771172]
[1722198026528,0.15081549,68240.0,68239.0,0.36776997]
[1722198026737,0.16015948,68240.0,68239.0,0.15002789]
[1722198027138,0.16015948,68240.0,68239.0,0.13602789]
[1722198027352,0.16015948,68240.0,68239.0,0.14902789]
[1722198028007,0.16015948,68240.0,68239.0,0.37049789]
[1722198028414,0.16015948,68240.0,68239.0,0.38349789]
[1722198028629,0.16015948,68240.0,68239.0,0.36949789]
[1722198028830,0.16015948,68240.0,68239.0,0.13502789]
[1722198029042,0.16015948,68240.0,68239.0,0.04465192]
[1722198029188,0.27739248,68240.0,68239.0,0.04465192]
[1722198029383,0.27894668,68240.0,68239.0,0.04465192]
[1722198029886,0.27739248,68240.0,68239.0,0.04465192]
[1722198030163,0.27758825,68240.0,68239.0,0.04465192]
[1722198030384,0.51205425,68240.0,68239.0,0.04465192]
[1722198030597,0.51228082,68240.0,68239.0,0.04465192]
[1722198031022,0.51228082,68240.0,68239.0,0.027924]
[1722198031457,0.51228082,68240.0,68239.0,0.04465192]
[1722198032528,0.49306532,68240.0,68239.0,0.04465192]
[1722198032738,0.51240859,68240.0,68239.0,0.04465192]
[1722198033156,0.51240859,68240.0,68239.0,0.027924]
[1722198033367,0.51241126,68240.0,68239.0,0.027924]
[1722198036346,0.49306532,68240.0,68239.0,0.027924]
[1722198036551,0.51255343,68240.0,68239.0,0.027924]
[1722198038437,0.5212749,68240.0,68239.0,0.027924]
[1722198040136,0.65283485,68240.0,68239.0,0.027924]
[1722198040334,0.65283157,68240.0,68239.0,0.027924]
[1722198041394,0.65438577,68240.0,68239.0,0.027924]
[1722198041606,0.65283157,68240.0,68239.0,0.027924]
[1722198041819,0.65438577,68240.0,68239.0,0.027924]
[1722198042026,0.63485735,68240.0,68239.0,0.027924]
[1722198042278,0.65440357,68240.0,68239.0,0.027924]
[1722198042489,0.65284937,68240.0,68239.0,0.027924]
[1722198042747,0.65440357,68240.0,68239.0,0.027924]
[1722198042969,0.65436872,68240.0,68239.0,0.027924]
[1722198043178,0.65281452,68240.0,68239.0,0.027924]
[1722198043377,0.52286646,68240.0,68239.0,0.027924]
[1722198044204,0.51414499,68240.0,68239.0,0.027924]
[1722198046234,0.49461952,68240.0,68239.0,0.027924]
[1722198046458,0.51410169,68240.0,68239.0,0.027924]
[1722198048733,0.90809748,68240.0,68239.0,0.027924]
[1722198048975,1.44485936,68240.0,68239.0,0.027924]
[1722198049155,1.67932536,68240.0,68239.0,0.027924]
[1722198049359,1.60599311,68240.0,68239.0,0.027924]
[1722198049572,1.65990109,68240.0,68239.0,0.014924]
[1722198049714,1.71089472,68240.0,68239.0,0.015924]
[1722198049917,1.76580363,68240.0,68239.0,0.015924]
[1722198050127,1.7852912,68240.0,68239.0,0.015924]
[1722198050753,1.7852912,68240.0,68239.0,0.001924]
[1722198050946,1.7862912,68240.0,68239.0,0.002924]
[1722198052556,1.73257238,68240.0,68239.0,0.002924]
[1722198052723,1.78666301,68240.0,68239.0,0.002924]
[1722198053555,1.71153322,68240.0,68239.0,0.002924]
[1722198054434,1.60663161,68240.0,68239.0,0.002924]
[1722198055276,1.50663161,68240.0,68239.0,0.002924]
[1722198055489,1.28546842,68240.0,68239.0,0.002924]
[1722198055698,1.14839732,68240.0,68239.0,0.002924]
[1722198055907,1.36875592,68240.0,68239.0,0.002924]
[1722198058869,1.2843466,68240.0,68239.0,0.002924]
[1722198059083,1.3687466,68240.0,68239.0,0.002924]
[1722198059321,1.14839732,68240.0,68239.0,0.002924]
[1722198059548,1.36955355,68240.0,68239.0,0.002924]
[1722198059772,1.05068755,68240.0,68239.0,0.002924]
[1722198059994,0.90297702,68240.0,68239.0,0.002924]
[1722198060464,0.90197702,68240.0,68239.0,0.001924]
[1722198060716,0.90297702,68240.0,68239.0,0.002924]
[1722198060920,0.90197702,68240.0,68239.0,0.001924]
[1722198061158,0.29414502,68240.0,68239.0,0.143024]
[1722198061363,0.14075248,68240.0,68239.0,0.143024]
[1722198061567,0.37477268,68240.0,68239.0,0.09641967]
[1722198061811,0.37377268,68240.0,68239.0,0.01691967]
[1722198062030,0.37577268,68240.0,68239.0,0.01791967]
[1722198062229,0.37577268,68240.0,68239.0,0.002924]
[1722198062230,0.56242566,68240.0,68239.0,0.002924]
[1722198062452,0.4290868,68240.0,68239.0,0.001924]
[1722198062749,0.5310868,68240.0,68239.0,0.002924]
[1722198062951,0.66345273,68240.0,68239.0,0.003924]
[1722198063166,0.5320868,68240.0,68239.0,0.003924]
[1722198063364,0.5320868,68240.0,68239.0,0.001924]
[1722198063365,0.5300868,68240.0,68239.0,0.001924]
[1722198063574,0.5310868,68240.0,68239.0,0.001924]
[1722198063852,0.8316528,68240.0,68239.0,0.001924]
[1722198064013,0.8300986,68240.0,68239.0,0.001924]
[1722198064213,0.83006353,68240.0,68239.0,0.001924]
[1722198064410,0.88243135,68240.0,68239.0,0.000924]
[1722198064646,0.83006337,68240.0,68239.0,0.000924]
[1722198065145,0.83161757,68240.0,68239.0,0.000924]
[1722198065329,0.84695613,68240.0,68239.0,0.000924]
[1722198065758,0.84540193,68240.0,68239.0,0.000924]
[1722198066680,0.84695613,68240.0,68239.0,0.000924]
[1722198067233,0.84540193,68240.0,68239.0,0.000924]
[1722198067440,0.54483593,68240.0,68239.0,0.000924]
[1722198067977,0.54639013,68240.0,68239.0,0.000924]
[1722198068443,0.69427896,68240.0,68239.0,0.000924]
[1722198068599,0.69272476,68240.0,68239.0,0.000924]
[1722198068972,0.69272476,68240.0,68239.0,0.01690519]
[1722198069173,0.69272476,68240.0,68239.0,0.000924]
[1722198069377,0.54483593,68240.0,68239.0,0.000924]
[1722198070735,0.54524772,68240.0,68239.0,0.000924]
[1722198070932,0.77971372,68240.0,68239.0,0.000924]
[1722198071139,0.70496988,68240.0,68239.0,0.000924]
[1722198071338,0.77971207,68240.0,68239.0,0.000924]
[1722198072329,1.20532735,68240.0,68239.0,0.000924]
[1722198072538,0.97086135,68240.0,68239.0,0.000924]
[1722198073052,0.91951207,68240.0,68239.0,0.000924]
[1722198073289,0.92004253,68240.0,68239.0,0.000924]
[1722198073897,0.91978489,68240.0,68239.0,0.000924]
[1722198074766,0.91478489,68240.0,68239.0,0.000924]
[1722198077365,1.14925089,68240.0,68239.0,0.000924]
[1722198080398,1.14934771,68240.0,68239.0,0.000924]
[1722198080961,1.14935404,68240.0,68239.0,0.000924]
[1722198083657,1.14957164,68240.0,68239.0,0.000924]
[1722198086948,1.14976462,68240.0,68239.0,0.000924]
[1722198090243,1.07423588,68240.0,68239.0,0.000924]
[1722198090453,1.14975124,68240.0,68239.0,0.000924]
[1722198090698,1.07423588,68240.0,68239.0,0.000924]
[1722198090958,1.14975127,68240.0,68239.0,0.000924]
[1722198091404,1.15059127,68240.0,68239.0,0.000924]
[1722198092847,1.15049602,68240.0,68239.0,0.000924]
[1722198093496,1.29131365,68240.0,68239.0,0.000924]
[1722198093705,1.68526997,68240.0,68239.0,0.000924]
[1722198094561,1.5350104,68240.0,68239.0,0.000924]
[1722198094822,1.0087444,68240.0,68239.0,0.000924]
[1722198094963,1.0087444,68240.0,68239.0,0.001924]
[1722198094964,1.0107444,68240.0,68239.0,0.001924]
[1722198095102,1.22599891,68240.0,68239.0,0.001924]
[1722198095303,0.99153291,68240.0,68239.0,0.001924]
[1722198095507,0.99153291,68240.0,68239.0,0.002924]
[1722198095508,0.7802784,68240.0,68239.0,0.002924]
[1722198096559,0.75949762,68240.0,68239.0,0.002924]
[1722198096783,0.77979408,68240.0,68239.0,0.002924]
[1722198098534,0.54532808,68240.0,68239.0,0.002924]
[1722198098724,0.31086208,68240.0,68239.0,0.002924]
[1722198098920,0.54532808,68240.0,68239.0,0.002924]
[1722198099866,0.54525671,68240.0,68239.0,0.002924]
[1722198100329,0.54525671,68240.0,68239.0,0.142124]
[1722198100330,0.47034388,68240.0,68239.0,0.142124]
[1722198100559,0.54523503,68240.0,68239.0,0.142124]
[1722198100779,0.54523503,68240.0,68239.0,0.15811401]
[1722198102449,0.54526728,68240.0,68239.0,0.15811401]
[1722198103479,0.31080128,68240.0,68239.0,0.15811401]
[1722198104168,0.30880128,68240.0,68239.0,0.141124]
[1722198104539,0.31080128,68240.0,68239.0,0.15711401]
[1722198104738,0.31635548,68240.0,68239.0,0.15711401]
[1722198104954,0.30780128,68240.0,68239.0,0.15611401]
[1722198105159,0.54226728,68240.0,68239.0,0.15611401]
[1722198106376,0.54626728,68240.0,68239.0,0.15611401]
[1722198106596,0.54593804,68240.0,68239.0,0.15611401]
[1722198107031,0.54593804,68240.0,68239.0,0.075924]
[1722198107463,0.54593804,68240.0,68239.0,0.000924]
[1722198107636,0.54749224,68240.0,68239.0,0.000924]
[1722198107855,0.78040404,68240.0,68239.0,0.000924]
[1722198107990,0.54593804,68240.0,68239.0,0.000924]
[1722198108192,0.76228026,68240.0,68239.0,0.000924]
[1722198108394,0.54713249,68240.0,68239.0,0.000924]
[1722198108607,0.54593804,68240.0,68239.0,0.000924]
[1722198108825,0.76228026,68240.0,68239.0,0.000924]
[1722198109228,0.54593804,68240.0,68239.0,0.000924]
[1722198109631,0.5462573,68240.0,68239.0,0.000924]
[1722198110090,0.54624389,68240.0,68239.0,0.000924]
[1722198110287,0.78070989,68240.0,68239.0,0.000924]
[1722198112803,0.78048153,68240.0,68239.0,0.000924]
[1722198116108,0.54612965,68240.0,68239.0,0.000924]
[1722198116331,0.54611142,68240.0,68239.0,0.000924]
[1722198116709,0.54758706,68240.0,68239.0,0.000924]
[1722198117159,0.78057742,68240.0,68239.0,0.000924]
[1722198117376,0.54611142,68240.0,68239.0,0.000924]
[1722198117802,0.78057742,68240.0,68239.0,0.000924]
[1722198119363,0.78045259,68240.0,68239.0,0.000924]
[1722198120389,0.54598659,68240.0,68239.0,0.000924]
[1722198120589,0.78045259,68240.0,68239.0,0.000924]
[1722198120990,0.78051034,68240.0,68239.0,0.000924]
[1722198121432,0.54604434,68240.0,68239.0,0.000924]
[1722198121617,0.78045338,68240.0,68239.0,0.000924]
[1722198121822,0.7804522,68240.0,68239.0,0.000924]
[1722198122892,0.78188158,68240.0,68239.0,0.000924]
[1722198123393,0.78067877,68240.0,68239.0,0.000924]
[1722198123618,0.76255756,68240.0,68239.0,0.000924]
[1722198123829,0.54621277,68240.0,68239.0,0.000924]
[1722198124030,0.78067877,68240.0,68239.0,0.000924]
[1722198124795,0.54621277,68240.0,68239.0,0.000924]
[1722198125197,0.78067877,68240.0,68239.0,0.000924]
[1722198126107,0.99702675,68240.0,68239.0,0.000924]
[1722198126338,0.78067877,68240.0,68239.0,0.000924]
[1722198126541,0.76256537,68240.0,68239.0,0.000924]
[1722198126936,0.99703137,68240.0,68239.0,0.000924]
[1722198128036,0.70580988,68240.0,68239.0,0.000924]
[1722198128238,0.99684895,68240.0,68239.0,0.000924]
[1722198129449,0.54603247,68240.0,68239.0,0.000924]
[1722198131070,0.78049847,68240.0,68239.0,0.000924]
[1722198131297,0.7805571,68240.0,68239.0,0.000924]
[1722198131520,0.5460911,68240.0,68239.0,0.000924]
[1722198131736,0.54559597,68240.0,68239.0,0.000924]
[1722198131937,0.78006197,68240.0,68239.0,0.000924]
[1722198132333,0.54559597,68240.0,68239.0,0.000924]
[1722198132833,0.78006197,68240.0,68239.0,0.000924]
[1722198134348,0.54559597,68240.0,68239.0,0.000924]
[1722198134578,0.78023393,68240.0,68239.0,0.000924]
[1722198134806,0.54576793,68240.0,68239.0,0.000924]
[1722198135252,0.78023393,68240.0,68239.0,0.000924]
[1722198135500,0.54576793,68240.0,68239.0,0.000924]
[1722198135725,0.78023393,68240.0,68239.0,0.000924]
[1722198135927,0.54576793,68240.0,68239.0,0.000924]
[1722198137774,0.54592816,68240.0,68239.0,0.000924]
[1722198138453,0.78039416,68240.0,68239.0,0.000924]
[1722198138655,0.54592816,68240.0,68239.0,0.000924]
[1722198139526,0.78039416,68240.0,68239.0,0.000924]
[1722198140145,0.54592816,68240.0,68239.0,0.000924]
[1722198140346,0.78039416,68240.0,68239.0,0.000924]
[1722198140571,0.54592816,68240.0,68239.0,0.000924]
[1722198140791,0.78039416,68240.0,68239.0,0.000924]
[1722198141513,0.99681209,68240.0,68239.0,0.000924]
[1722198141999,0.54589812,68240.0,68239.0,0.000924]
[1722198142223,0.99681198,68240.0,68239.0,0.000924]
[1722198142460,0.76234598,68240.0,68239.0,0.000924]
[1722198143127,0.54589812,68240.0,68239.0,0.000924]
[1722198143382,0.99681082,68240.0,68239.0,0.000924]
[1722198143624,0.78036412,68240.0,68239.0,0.000924]
[1722198144086,0.77996267,68240.0,68239.0,0.000924]
[1722198144309,0.77996493,68240.0,68239.0,0.000924]
[1722198146668,0.91986493,68240.0,68239.0,0.000924]
[1722198146930,1.30433093,68240.0,68239.0,0.000924]
[1722198147368,1.20433093,68240.0,68239.0,0.000924]
[1722198147590,1.15394963,68240.0,68239.0,0.000924]
[1722198147802,1.09844963,68240.0,68239.0,0.000924]
[1722198148262,1.09844963,68240.0,68239.0,0.144624]
[1722198148263,0.99599107,68240.0,68239.0,0.144624]
[1722198148466,0.76152507,68240.0,68239.0,0.144624]
[1722198148679,0.54511763,68240.0,68239.0,0.144624]
[1722198150723,0.54530664,68240.0,68239.0,0.144624]
[1722198151122,0.47134388,68240.0,68239.0,0.144624]
[1722198151333,0.54529928,68240.0,68239.0,0.144624]
[1722198153821,0.54605875,68240.0,68239.0,0.144624]
[1722198157217,0.54649413,68240.0,68239.0,0.144624]
[1722198157643,0.19932881,68240.0,68239.0,0.144624]
[1722198157892,0.31811601,68240.0,68239.0,0.144624]
[1722198158184,0.19932881,68240.0,68239.0,0.144624]
[1722198158637,0.19932881,68240.0,68239.0,0.16062142]
[1722198158838,0.31656181,68240.0,68239.0,0.16062142]
[1722198160290,0.24141156,68240.0,68239.0,0.16062142]
[1722198160554,0.31740403,68240.0,68239.0,0.16062142]
[1722198160790,0.12417856,68240.0,68239.0,0.16062142]
[1722198161054,0.20108549,68240.0,68239.0,0.16062142]
[1722198161306,0.20003563,68240.0,68239.0,0.16062142]
[1722198161545,0.20003563,68240.0,68239.0,0.144624]
[1722198161777,0.31726863,68240.0,68239.0,0.144624]
[1722198162009,0.20003563,68240.0,68239.0,0.144624]
[1722198162246,0.20003563,68240.0,68239.0,0.16062142]
[1722198162489,0.3180837,68240.0,68239.0,0.16062142]
[1722198162716,0.31726863,68240.0,68239.0,0.16062142]
[1722198162966,0.20003563,68240.0,68239.0,0.16062142]
[1722198163508,0.31745962,68240.0,68239.0,0.16062142]
[1722198166428,0.55192562,68240.0,68239.0,0.09832142]
[1722198166754,0.47587756,68240.0,68239.0,0.09832142]
[1722198166982,0.55166391,68240.0,68239.0,0.082324]
[1722198170085,0.47587756,68240.0,68239.0,0.082324]
[1722198170224,0.55145923,68240.0,68239.0,0.082324]
[1722198170433,0.47587756,68240.0,68239.0,0.082324]
[1722198170636,0.55146374,68240.0,68239.0,0.082324]
[1722198170839,0.55146374,68240.0,68239.0,0.09830968]
[1722198171065,0.55146374,68240.0,68239.0,0.082324]
[1722198171891,0.78592974,68240.0,68239.0,0.082324]
[1722198172095,0.78592974,68240.0,68239.0,0.000924]
[1722198173289,0.78551706,68240.0,68239.0,0.000924]
[1722198173497,0.93051706,68240.0,68239.0,0.000924]
[1722198174573,1.16498306,68240.0,68239.0,0.000924]
[1722198176510,1.08980956,68240.0,68239.0,0.000924]
[1722198176730,1.16497885,68240.0,68239.0,0.000924]
[1722198179777,1.08980956,68240.0,68239.0,0.000924]
[1722198179995,1.16544371,68240.0,68239.0,0.000924]
[1722198180439,0.93102724,68240.0,68239.0,0.000924]
[1722198181104,1.16549324,68240.0,68239.0,0.000924]
[1722198182354,1.11039668,68240.0,68239.0,0.000924]
[1722198182581,1.165374,68240.0,68239.0,0.000924]
[1722198185402,1.16525961,68240.0,68239.0,0.000924]
[1722198186790,1.08605961,68240.0,68239.0,0.000924]
[1722198187719,1.02025961,68240.0,68239.0,0.000924]
[1722198188368,0.78579361,68240.0,68239.0,0.000924]
[1722198188570,0.71034356,68240.0,68239.0,0.079724]
[1722198188804,0.786037,68240.0,68239.0,0.079724]
[1722198189415,0.7875912,68240.0,68239.0,0.079724]
[1722198189657,0.786037,68240.0,68239.0,0.079724]
[1722198190017,0.78702568,68240.0,68239.0,0.079724]
[1722198190224,0.786037,68240.0,68239.0,0.079724]
[1722198190917,0.78690198,68240.0,68239.0,0.079724]
[1722198191116,0.786037,68240.0,68239.0,0.079724]
[1722198191292,0.78708617,68240.0,68239.0,0.079724]
[1722198191514,0.786037,68240.0,68239.0,0.079724]
[1722198191752,0.786037,68240.0,68239.0,0.000924]
[1722198191968,0.8506656,68240.0,68239.0,0.000924]
[1722198192413,0.77504356,68240.0,68239.0,0.000924]
[1722198192633,0.85074273,68240.0,68239.0,0.000924]
[1722198194233,0.85100716,68240.0,68239.0,0.000924]
[1722198194864,0.78630716,68240.0,68239.0,0.000924]
[1722198195064,0.71034356,68240.0,68239.0,0.000924]
[1722198195266,0.78649218,68240.0,68239.0,0.000924]
[1722198195951,0.78649218,68240.0,68239.0,0.079724]
[1722198196144,0.78649218,68240.0,68239.0,0.142424]
[1722198198290,0.71034356,68240.0,68239.0,0.142424]
[1722198198496,0.78786447,68240.0,68239.0,0.142424]
[1722198201565,0.78831925,68240.0,68239.0,0.142424]
[1722198201763,0.20215425,68240.0,68239.0,0.142424]
[1722198201968,0.12417856,68240.0,68239.0,0.142424]
[1722198202200,0.10187208,68240.0,68239.0,0.142424]
[1722198202402,0.20187208,68240.0,68239.0,0.15841107]
[1722198202800,0.20187208,68240.0,68239.0,0.27564607]
[1722198202978,0.20187208,68240.0,68239.0,0.15841107]
[1722198204316,0.20183196,68240.0,68239.0,0.15841107]
[1722198206114,0.20183196,68240.0,68239.0,0.27564607]
[1722198206426,0.20183196,68240.0,68239.0,0.15841107]
[1722198207840,0.20183196,68240.0,68239.0,0.27564607]
[1722198209005,0.20183196,68240.0,68239.0,0.15841107]
[1722198211518,0.10184415,68240.0,68239.0,0.82898607]
[1722198211730,0.19422467,68240.0,68239.0,0.82898607]
[1722198211962,0.00884,68240.0,68239.0,0.82898607]
[1722198212179,0.03049973,68240.0,68239.0,0.82898607]
[1722198212831,0.03205393,68240.0,68239.0,0.82898607]
[1722198213238,0.03049973,68240.0,68239.0,0.82898607]
[1722198213649,0.02649973,68240.0,68239.0,0.82898607]
[1722198213864,0.03049973,68240.0,68239.0,0.82898607]
[1722198214072,0.02649973,68240.0,68239.0,0.82898607]
[1722198214501,0.02249973,68240.0,68239.0,0.82898607]
[1722198214714,0.02640203,68240.0,68239.0,0.83098607]
[1722198215145,0.02640203,68240.0,68239.0,0.74658607]
[1722198215346,0.02240203,68240.0,68239.0,0.74658607]
[1722198215547,0.02240203,68240.0,68239.0,0.74958607]
[1722198218031,0.02235623,68240.0,68239.0,0.74958607]
[1722198221175,0.02238966,68240.0,68239.0,0.74958607]
[1722198224303,0.02237764,68240.0,68239.0,0.74958607]
[1722198225182,0.02237764,68240.0,68239.0,0.51511607]
[1722198225836,0.02393184,68240.0,68239.0,0.51511607]
[1722198227699,0.02378263,68240.0,68239.0,0.51511607]
[1722198228382,0.02378263,68240.0,68239.0,0.21794607]
[1722198228834,0.07952014,68240.0,68239.0,0.21794607]
[1722198230188,0.07796594,68240.0,68239.0,0.21794607]
[1722198230389,0.07952014,68240.0,68239.0,0.21794607]
[1722198231162,0.07796594,68240.0,68239.0,0.21794607]
[1722198231366,0.07952014,68240.0,68239.0,0.21794607]
[1722198231912,0.07796594,68240.0,68239.0,0.21794607]
[1722198232122,0.07952014,68240.0,68239.0,0.21794607]
[1722198232699,0.22780786,68240.0,68239.0,0.21794607]
[1722198232900,0.07796594,68240.0,68239.0,0.21794607]
[1722198233071,0.07796594,68240.0,68239.0,0.10071107]
[1722198233278,0.07728597,68240.0,68239.0,0.10071107]
[1722198234035,0.05627046,68240.0,68239.0,0.10071107]
[1722198234482,0.02190533,68240.0,68239.0,0.10071107]
[1722198234680,0.07733579,68240.0,68239.0,0.10071107]
[1722198236196,0.07733579,68240.0,68239.0,0.02191107]
[1722198236197,0.07888999,68240.0,68239.0,0.02191107]
[1722198237385,0.07733579,68240.0,68239.0,0.02191107]
[1722198237623,0.42903479,68240.0,68239.0,0.02191107]
[1722198237855,0.89796679,68240.0,68239.0,0.02191107]
[1722198238079,0.89796679,68240.0,68239.0,0.005924]
[1722198238080,1.03516679,68240.0,68239.0,0.005924]
[1722198238309,0.80070079,68240.0,68239.0,0.005924]
[1722198239888,0.42903479,68240.0,68239.0,0.005924]
[1722198240107,0.43058899,68240.0,68239.0,0.005924]
[1722198240790,0.66560791,68240.0,68239.0,0.0219111]
[1722198241007,0.66560791,68240.0,68239.0,0.005924]
[1722198241008,0.42958771,68240.0,68239.0,0.005924]
[1722198241229,0.42959042,68240.0,68239.0,0.005924]
[1722198241942,0.66405642,68240.0,68239.0,0.005924]
[1722198242377,0.42959042,68240.0,68239.0,0.005924]
[1722198242817,0.42947951,68240.0,68239.0,0.005924]
[1722198243267,0.42948028,68240.0,68239.0,0.005924]
[1722198243702,0.43103448,68240.0,68239.0,0.005924]
[1722198244352,0.43103448,68240.0,68239.0,0.0219111]
[1722198244498,0.43103448,68240.0,68239.0,0.005924]
[1722198244720,0.43103448,68240.0,68239.0,0.0219111]
[1722198244963,0.43103448,68240.0,68239.0,0.005924]
[1722198245898,0.43103448,68240.0,68239.0,0.0219111]
[1722198246122,0.43118372,68240.0,68239.0,0.0219111]
[1722198248020,0.42962952,68240.0,68239.0,0.0219111]
[1722198249512,0.42956342,68240.0,68239.0,0.0219111]
[1722198250345,0.42956342,68240.0,68239.0,0.0189111]
[1722198251285,0.19509742,68240.0,68239.0,0.0209111]
[1722198251497,0.19665162,68240.0,68239.0,0.0209111]
[1722198251881,0.19665162,68240.0,68239.0,0.0189111]
[1722198252084,0.19765162,68240.0,68239.0,0.0189111]
[1722198252736,0.19508552,68240.0,68239.0,0.0189111]
[1722198252911,0.19663972,68240.0,68239.0,0.0189111]
[1722198253122,0.1196272,68240.0,68239.0,0.0199111]
[1722198253325,0.0793859,68240.0,68239.0,0.0199111]
[1722198254517,0.1966189,68240.0,68239.0,0.0199111]
[1722198254719,0.1950647,68240.0,68239.0,0.0199111]
[1722198255082,0.19499889,68240.0,68239.0,0.0199111]
[1722198255799,0.19495494,68240.0,68239.0,0.0199111]
[1722198259185,0.17374279,68240.0,68239.0,0.0199111]
[1722198259393,0.19506723,68240.0,68239.0,0.0199111]
[1722198262468,0.19481864,68240.0,68239.0,0.0199111]
[1722198262896,0.07758564,68240.0,68239.0,0.0199111]
[1722198263355,0.50863884,68240.0,68239.0,0.0199111]
[1722198263585,0.57308464,68240.0,68239.0,0.0199111]
[1722198263839,0.57308464,68240.0,68239.0,0.003924]
[1722198264535,0.57314599,68240.0,68239.0,0.003924]
[1722198265641,0.496339,68240.0,68239.0,0.003924]
[1722198265954,0.57315161,68240.0,68239.0,0.003924]
[1722198267387,0.80761761,68240.0,68239.0,0.003924]
[1722198268975,0.80749334,68240.0,68239.0,0.003924]
[1722198272097,0.80736869,68240.0,68239.0,0.003924]
[1722198272717,0.730805,68240.0,68239.0,0.003924]
[1722198272922,0.80736702,68240.0,68239.0,0.003924]
[1722198274484,0.42910102,68240.0,68239.0,0.003924]
[1722198274926,0.43065522,68240.0,68239.0,0.02057387]
[1722198275136,0.43065522,68240.0,68239.0,0.003924]
[1722198275345,0.43062819,68240.0,68239.0,0.003924]
[1722198275559,0.42907399,68240.0,68239.0,0.003924]
[1722198276167,0.66509419,68240.0,68239.0,0.003924]
[1722198276425,0.352539,68240.0,68239.0,0.003924]
[1722198276628,0.42906253,68240.0,68239.0,0.003924]
[1722198277055,0.42912861,68240.0,68239.0,0.003924]
[1722198277254,0.43068281,68240.0,68239.0,0.003924]
[1722198277686,0.42912861,68240.0,68239.0,0.003924]
[1722198278231,0.43068281,68240.0,68239.0,0.003924]
[1722198280096,0.42912861,68240.0,68239.0,0.003924]
[1722198280508,0.43068281,68240.0,68239.0,0.003924]
[1722198282308,0.3540932,68240.0,68239.0,0.003924]
[1722198282513,0.4307266,68240.0,68239.0,0.003924]
[1722198283568,0.6651926,68240.0,68239.0,0.003924]
[1722198283781,0.4291724,68240.0,68239.0,0.003924]
[1722198284201,0.4307266,68240.0,68239.0,0.003924]
[1722198285053,0.42943711,68240.0,68239.0,0.003924]
[1722198285710,0.43099131,68240.0,68239.0,0.003924]
[1722198288479,0.43101859,68240.0,68239.0,0.003924]
[1722198289868,0.66548459,68240.0,68239.0,0.003924]
[1722198290065,0.42946439,68240.0,68239.0,0.003924]
[1722198290948,0.43101859,68240.0,68239.0,0.003924]
[1722198291595,0.3540932,68240.0,68239.0,0.003924]
[1722198291813,0.42893648,68240.0,68239.0,0.003924]
[1722198292020,0.3540932,68240.0,68239.0,0.0205741]
[1722198292238,0.3540932,68240.0,68239.0,0.003924]
[1722198292239,0.43103495,68240.0,68239.0,0.003924]
[1722198294677,0.3753765,68240.0,68239.0,0.003924]
[1722198294886,0.42945481,68240.0,68239.0,0.003924]
[1722198295121,0.43100901,68240.0,68239.0,0.003924]
[1722198295979,0.43100901,68240.0,68239.0,0.002924]
[1722198296391,0.43500901,68240.0,68239.0,0.002924]
[1722198296812,0.43500901,68240.0,68239.0,0.000924]
[1722198296813,0.43100901,68240.0,68239.0,0.000924]
[1722198297021,0.42945481,68240.0,68239.0,0.000924]
[1722198297223,0.43650869,68240.0,68239.0,0.000924]
[1722198297435,0.43545481,68240.0,68239.0,0.000924]
[1722198297651,0.43645481,68240.0,68239.0,0.000924]
[1722198298094,0.43657747,68240.0,68239.0,0.000924]
[1722198300679,0.86314347,68240.0,68239.0,0.000924]
[1722198300913,1.220571,68240.0,68239.0,0.000924]
[1722198301146,1.54424512,68240.0,68239.0,0.000924]
[1722198301415,1.455037,68240.0,68239.0,0.000924]
[1722198301845,1.63288837,68240.0,68239.0,0.000924]
[1722198302045,1.69451323,68240.0,68239.0,0.000924]
[1722198302691,1.69251323,68240.0,68239.0,0.000924]
[1722198303153,1.70151323,68240.0,68239.0,0.001924]
[1722198303696,1.70159281,68240.0,68239.0,0.001924]
[1722198303916,1.54633324,68240.0,68239.0,0.001924]
[1722198304132,1.45133324,68240.0,68239.0,0.002924]
[1722198304360,1.63573324,68240.0,68239.0,0.002924]
[1722198305000,1.21686724,68240.0,68239.0,0.002924]
[1722198305254,1.30126724,68240.0,68239.0,0.002924]
[1722198306500,1.51729182,68240.0,68239.0,0.002924]
[1722198306677,1.51792423,68240.0,68239.0,0.002924]
[1722198307100,1.24142423,68240.0,68239.0,0.002924]
[1722198307305,1.02539968,68240.0,68239.0,0.002924]
[1722198307508,1.02695388,68240.0,68239.0,0.002924]
[1722198307721,1.02539968,68240.0,68239.0,0.002924]
[1722198307920,1.15979968,68240.0,68239.0,0.002924]
[1722198308127,1.37582423,68240.0,68239.0,0.002924]
[1722198308952,1.23829968,68240.0,68239.0,0.002924]
[1722198309991,1.2378137,68240.0,68239.0,0.002924]
[1722198313177,1.38020635,68240.0,68239.0,0.002924]
[1722198315029,1.23783947,68240.0,68239.0,0.002924]
[1722198316599,1.45373365,68240.0,68239.0,0.002924]
[1722198317696,1.45385497,68240.0,68239.0,0.002924]
[1722198319565,1.45404413,68240.0,68239.0,0.002924]
[1722198322784,1.23825662,68240.0,68239.0,0.002924]
[1722198322983,1.45415699,68240.0,68239.0,0.002924]
[1722198323402,1.45409269,68240.0,68239.0,0.002924]